Cogmind - Beta 16.1 @@@ ROGUE MODE // 2026.01.10 @ 16:11:41 Player: Minty Result: Smashed by cave-in Performance ------------- Evolutions (0) 0 Regions Visited (3) 600 Robots Destroyed (24) 120 Value Destroyed (542) 542 Prototype IDs (20) 400 Alien Tech Used (0) 0 Bonus (135) 135 TOTAL SCORE: 1797 Bonus ------- Follower Combat Kills 424 Friendly Fire -289 Cogmind --------- Core Integrity 0/250 Matter 300/300 Energy 143/160 System Corruption 13% Temperature Cool (0) Movement Core (350) Ox6 Location -9/Recycling Parts ------- > --- POWER (1) -------- Light Nuclear Core > --- PROPULSION (2) --- Makeshift Leg > --- UTILITY (2) ------ Medium Storage Unit > --- WEAPON (2) ------- Autogun Ripper > --- INVENTORY (10) --- High-capacity Matter Pod (200) Light Armor Plating Gun Armor Hacking Suite Cobbler Unit Barrage Gun Subdweller Shrapnel Launcher Subdweller Shrapnel Launcher Peak State ------------ > --- POWER ------------ Light Nuclear Core > --- PROPULSION ------- Light Treads Makeshift Leg > --- UTILITY ---------- Medium Storage Unit V3-11A's Pendant > --- WEAPON ----------- Subdweller Machine Gun Ripper > --- INVENTORY -------- High-capacity Matter Pod Light Armor Plating Gun Armor Hacking Suite Cobbler Unit Subdweller Machine Gun Barrage Gun Subdweller Shrapnel Launcher Subdweller Shrapnel Launcher [Rating: 20] Favorites ----------- Power Light Nuclear Core Engine Light Ion Engine Power Core Light Nuclear Core Propulsion Light Treads Treads Light Treads Leg Makeshift Leg Wheel Wheel Utility Medium Storage Unit Device Structural Scanner Storage Medium Storage Unit Weapon Subdweller Machine Gun Energy Gun EM Pulse Gun Ballistic Gun Subdweller Machine Gun Ballistic Cannon Light Cannon Special Weapon Mining Laser Slashing Weapon Ripper Build | -11 -10 -10 -9 ------- Run | Yrd Mat Sub Rec Slots Evolved . | . . . . Power . | . . . . Propulsion . | . . . . Utility . | . . . . Weapon . | . . . . Parts Attached 25 | . 10 11 4 Power 2 | . 1 1 . Engine 1 | . 1 . . Core 1 | . . 1 . Reactor . | . . . . Propulsion 9 | . 3 4 2 Treads 3 | . . 2 1 Leg 1 | . . 1 . Wheel 5 | . 3 1 1 Hover . | . . . . Flight . | . . . . Utility 4 | . 2 2 . Device 3 | . 1 2 . Storage 1 | . 1 . . Processor . | . . . . Hackware . | . . . . Protection . | . . . . Artifact . | . . . . Weapon 10 | . 4 4 2 Energy Gun 1 | . 1 . . Energy Cannon . | . . . . Ballistic Gun 6 | . 1 3 2 Ballistic Cannon 1 | . 1 . . Launcher . | . . . . Special Weapon 1 | . 1 . . Impact Weapon . | . . . . Slashing Weapon 1 | . . 1 . Piercing Weapon . | . . . . Special Melee Weapon . | . . . . Unidentified Prototypes 1 | . . 1 . Corrupted Parts 2 | . 1 1 . System Corruption 4 | . 2 2 . Parts Lost 13 | . 2 8 3 Power 2 | . 1 1 . Propulsion 6 | . . 4 2 Utility 2 | . . 1 1 Weapon 3 | . 1 2 . Highest Loss Streak 3 | . 2 3 3 To Critical Strikes . | . . . . Average Backups 8 | . 6 8 8 Power . | . 1 . . Propulsion . | . 2 . . Utility 4 | . 1 4 5 Weapon 3 | . 1 3 3 Tool/Special . | . . . . Unused Backups 20 | . 12 1 7 Power . | . . . . Propulsion 10 | . 10 . . Utility 7 | . 2 . 5 Weapon 3 | . . 1 2 Tool/Special . | . . . . Average Slot Usage (%) 98 | . 98 97 99 Engine 3 | . 13 1 . Core 10 | . . 11 14 Treads 13 | . . 16 13 Leg 10 | . 23 6 14 Wheel 2 | . 4 2 . Device 13 | . 12 14 14 Storage 14 | . 14 14 14 Energy Gun 2 | . 12 . . Ballistic Gun 21 | . 13 23 22 Slashing Weapon 2 | . . 2 5 Peak Build Rating 20 | . 9 20 20 Average Rating 14 | . 7 14 18 On Entrance 10 | 7 7 9 18 Avg Prop Armor Cover (%) 11 | . . 10 11 Naked Turns . | . . . . Heaviest Build 24 | 12 21 24 24 Greatest Support 40 | 20 26 40 20 Greatest Overweight (x) 2 | . 1 2 1 Average Overweight (x) . | . . . 1 Largest Inventory Capacity 10 | . 10 10 10 Average Capacity 9 | . 8 10 10 Most Carried 10 | . 10 10 10 Average Carried 9 | . 6 9 9 Final Capacity 10 | 8 10 10 10 Final Carried 10 | 7 9 10 9 Class Distribution -------------------- 100% | Mutant Dominant Class ---------------- Mutant | -10/Materials Mutant | -10/Subcaves Mutant | -9/Recycling Resources | -11 -10 -10 -9 ----------- Run | Yrd Mat Sub Rec Matter Collected 1284 | 200 244 596 244 Remotely . | . . . . Salvage Created 976 | . 220 295 461 Parts 55 | . 16 24 15 Haulers Intercepted 1 | . 1 . . Recyclers Shooed 3 | . . . 3 Parts Field Recycled . | . . . . Retrieved Matter . | . . . . Parts Self-Destructed 17 | . . 17 . Prevented . | . . . . Parts Restored . | . . . . Kills | -11 -10 -10 -9 ------- Run | Yrd Mat Sub Rec Combat Hostiles Destroyed 13 | . 1 10 2 Guns 11 | . . 9 2 Cannons 2 | . 1 1 . Classes Destroyed 10 | . 6 3 1 Worker 2 | . 2 . . Tunneler 1 | . 1 . . Hauler 1 | . 1 . . Recycler 5 | . 1 . 4 Watcher 1 | . 1 . . Swarmer 4 | . . 4 . Grunt 3 | . 1 2 . Sentry 2 | . . . 2 Artisan 2 | . . 2 . Subdweller 5 | . . 4 1 Best Kill Streak 4 | . 2 4 2 Combat Bots Only 4 | . 1 4 1 Max Kills in Single Turn 2 | . 1 2 2 Gunslinging 1 | . . 1 . Exploded . | . . . . Melee . | . . . . Uniques/NPCs Destroyed . | . . . . Combat | -11 -10 -10 -9 -------- Run | Yrd Mat Sub Rec Hostile Shots Fired 136 | . 40 86 10 Missed 51 | . 12 36 3 Hits 85 | . 28 50 7 Projectile 85 | . 28 50 7 AOE 2 | . . 2 . Critical Strikes 3 | . . 2 1 Damage Taken 1596 | . 345 721 530 Core 312 | . 57 121 134 Absorbed by Shields . | . . . . Core Remaining (%) 100 | 100 . . . Volleys Fired 99 | . 31 54 14 Largest 2 | . 2 2 2 Hottest 165 | . 100 165 60 Shots Fired 187 | . 59 101 27 Gun 179 | . 55 97 27 Cannon 5 | . 3 2 . Launcher . | . . . . Special 3 | . 1 2 . Kinetic 133 | . 32 74 27 Thermal 32 | . 5 27 . Explosive . | . . . . Electromagnetic 22 | . 22 . . Robot Hit Streak 17 | . 9 17 8 Robot Miss Streak 3 | . 2 3 2 Penetration Max . | . . . . Secondary Targets 1 | . . 1 . Max Gunslinging Chain 1 | . . 1 . Shots Hit Robots 110 | . 36 52 22 Core Hits 41 | . 15 20 6 Critical Kills . | . . . . Critical Parts Destroyed . | . . . . Critical Strikes . | . . . . Melee Attacks 16 | . . 4 12 Impact . | . . . . Slashing 16 | . . 4 12 Piercing . | . . . . Sneak Attacks 5 | . . 2 3 Combat Hostiles . | . . . . Follow-up Attacks . | . . . . Damage Inflicted 2301 | . 527 994 780 Guns 1624 | . 489 775 360 Cannons 56 | . 38 18 . Explosions 165 | . . . 165 Melee 432 | . . 177 255 Ramming . | . . . . Kinetic 1183 | . 286 537 360 Thermal 308 | . 28 280 . Explosive 165 | . . . 165 Electromagnetic 213 | . 213 . . Impact . | . . . . Slashing 432 | . . 177 255 Piercing . | . . . . Highest Corruption 6 | . 4 6 6 Average Corruption 5 | . 2 5 6 Corruption Purged . | . . . . Corruption Blocked . | . . . . Effects 98 | . 8 65 25 Message Errors 20 | . 1 13 6 Matter Fused 29 | . 3 20 6 Heat Flow Errors 12 | . 1 7 4 Energy Discharges 12 | . 3 5 4 Parts Fused 2 | . . 2 . Data Loss (minor) 8 | . . 7 1 Data Loss (major) 5 | . . 4 1 Misfires 6 | . . 4 2 Alerts 1 | . . 1 . Weapon Failures 3 | . . 2 1 Overload Shots . | . . . . Overflow Damage 140 | . . 37 103 Projectiles . | . . . . Explosions 28 | . . . 28 Melee 112 | . . 37 75 Knockbacks . | . . . . Impact . | . . . . Kinetic . | . . . . Secondary . | . . . . Self-Inflicted Damage 108 | . . . 108 Shots 2 | . . . 2 Rammed . | . . . . Targets Rammed . | . . . . Kicked . | . . . . Crushed . | . . . . Highest Temperature 275 | . 131 236 275 Average Temperature 70 | . 45 90 82 Received Heat Transfer 483 | . 192 228 63 Effects 1 | . . . 1 Energy Bleed 1 | . . . 1 Siege Activations . | . . . . Martial Activations . | . . . . Shielding Activations . | . . . . Robots Disrupted . | . . . . Combat Hostiles . | . . . . Robots Corrupted . | . . . . Combat Hostiles . | . . . . Parts Fried 1 | . 1 . . Impact Corruptions . | . . . . Robots Melted . | . . . . Combat Hostiles . | . . . . Parts Melted 2 | . 1 1 . Heat Transferred 716 | . 74 642 . Parts Sabotaged . | . . . . Parts Stolen . | . . . . Parts Stripped . | . . . . Power Chain Reactions . | . . . . Alert | -11 -10 -10 -9 ------- Run | Yrd Mat Sub Rec Maximum Alert Level . | . . . . Low Security (%) 100 | . 100 . 100 Level 1 . | . . . . Level 2 . | . . . . Level 3 . | . . . . Level 4 . | . . . . Level 5 . | . . . . High Security . | . . . . Max Security . | . . . . Peak Influence 128 | . 128 . 67 Initial . | . . . . Average 22 | . 46 . 4 Influence Increases 809 | . 280 312 217 Destroy 0b10 Robot/C 420 | . 120 220 80 Destroy 0b10 Robot/NC 65 | . 45 . 20 Destroy Leader 46 | . 26 20 . Allied During Kill 53 | . 14 27 12 Successful Hack 35 | . 14 . 21 Disable Machine 120 | . 60 . 60 Destroy Structure 25 | . 1 . 24 Lose Combat Pursuer 45 | . . 45 . Influence Decreases 762 | . 219 373 170 Entered New Map 30 | . . 30 . Time Decay 625 | . 199 286 140 Lost Part 107 | . 20 57 30 Squads Dispatched . | . . . . Investigation . | . . . . Extermination . | . . . . Reinforcement . | . . . . Assault . | . . . . Garrison . | . . . . Intercept . | . . . . Searches Triggered . | . . . . Construction Impeded . | . . . . Haulers Reinforced . | . . . . Active Scanning Responses . | . . . . Cargo Convoy Interrupts . | . . . . Stealth | -11 -10 -10 -9 --------- Run | Yrd Mat Sub Rec Distress Signals . | . . . . Communications Jammed . | . . . . Distress Signals . | . . . . Times Spotted 33 | . 10 20 3 Peak Tracking Total 6 | . 3 6 1 Tactical Retreats 2 | . . 2 . Traps | -11 -10 -10 -9 ------- Run | Yrd Mat Sub Rec Traps Triggered 1 | . 1 . . Indirectly . | . . . . Trap Hack Attempts . | . . . . Triggered . | . . . . Disarmed . | . . . . Reprogrammed . | . . . . Reused . | . . . . Traps Extracted . | . . . . Installed . | . . . . Triggered . | . . . . Machines | -11 -10 -10 -9 ---------- Run | Yrd Mat Sub Rec Machines Disabled 11 | . 4 3 4 Max in Single Turn 2 | . 1 1 2 Machines Repaired . | . . . . Machines Dismantled . | . . . . Machines Sabotaged . | . . . . Overloaded Fab Kills . | . . . . Hacking | -11 -10 -10 -9 --------- Run | Yrd Mat Sub Rec Machines Accessed 11 | . 5 1 5 Terminals 9 | . 4 . 5 Fabricators . | . . . . Repair Stations . | . . . . Recycling Units 1 | . 1 . . Scanalyzers . | . . . . Garrison Access . | . . . . Total Hacks 35 | . 19 1 15 Successful 18 | . 6 1 11 Failed 17 | . 13 . 4 Catastrophic 1 | . 1 . . Database Lockouts . | . . . . Manual 20 | . 10 . 10 Terminals 30 | . 15 . 15 Fabricators . | . . . . Repair Stations . | . . . . Recycling Units 4 | . 4 . . Scanalyzers . | . . . . Garrison Access . | . . . . Terminal Hacks 11 | . 3 1 7 Record 1 | . . . 1 Robot Analysis 2 | . 1 . 1 Prototype ID Bank 3 | . . . 3 Branch Access Points 1 | . 1 . . Terminal Index 1 | . . . 1 Surveillance Status 1 | . 1 . . Zone Layout 1 | . . . 1 Proto ID Catalog 1 | . . 1 . Fabricator Hacks . | . . . . Repair Station Hacks . | . . . . Recycling Unit Hacks 2 | . 2 . . Report Inventory 1 | . 1 . . Retrieve Components 1 | . 1 . . Scanalyzer . | . . . . Garrison Access Hacks . | . . . . Unauthorized Hacks 5 | . 1 . 4 Terminals 5 | . 1 . 4 Botnet 2 | . . . 2 Skim 3 | . 1 . 2 Fabricators . | . . . . Repair Stations . | . . . . Recycling Units . | . . . . Scanalyzers . | . . . . Garrison Access . | . . . . Data Cores Recovered 1 | . 1 . . Used 1 | . 1 . . Hacking Detections 10 | . 5 . 5 Full Trace Events 2 | . 2 . . Feedback Events . | . . . . Feedback Blocked . | . . . . Robot Schematics Acquired . | . . . . Robots Built . | . . . . Authchips . | . . . . Time . | . . . . Total Robot Build Rating . | . . . . Part Schematics Acquired . | . . . . Parts Built . | . . . . Authchips . | . . . . Time . | . . . . Total Part Build Rating . | . . . . Part Studies Acquired . | . . . . Parts Repaired . | . . . . Time . | . . . . Parts Recycled . | . . . . Recycled Matter . | . . . . Retrieved Matter . | . . . . Retrieved Components 3 | . 3 . . Parts Scanalyzed . | . . . . Part Schematics Acquired . | . . . . Parts Damaged . | . . . . Bothacking | -11 -10 -10 -9 ------------ Run | Yrd Mat Sub Rec Used RIF Installer . | . . . . Robots Hacked . | . . . . Non-combat . | . . . . Combat . | . . . . Robot Hacks Applied . | . . . . Relay Couplers Released . | . . . . Fabnet Peak Effective % . | . . . . Robots Rewired . | . . . . Allies Hacked . | . . . . Hacks Repelled . | . . . . Allies | -11 -10 -10 -9 -------- Run | Yrd Mat Sub Rec Total Allies 3 | . 1 2 . Largest Group 3 | . 1 3 3 Highest-Rated Group 67 | . 30 67 67 Highest-Rated Ally 30 | . 30 30 29 Total Orders . | . . . . Ally Attacks 59 | . 18 33 8 Total Damage 1156 | . 361 636 159 Kills 19 | . 8 9 2 Allies Corrupted . | . . . . Allies Melted . | . . . . Intel | -11 -10 -10 -9 ------- Run | Yrd Mat Sub Rec Active Infowar (turns) 2084 | . 636 1448 . Structural 2082 | . 636 1446 . Seismic 2 | . . 2 . Robot Analysis Total 2 | . 1 . 1 Derelict Logs Recovered 3 | . . 3 . Drone Launches . | . . . . Drone Recoveries . | . . . . Exploration | -11 -10 -10 -9 ------------- Run | Yrd Mat Sub Rec Turns Passed 4009 | . 681 2435 893 Spaces Moved 2140 | 1 458 1294 387 Core . | . . . . Treads 567 | . . 567 . Legs 1261 | 1 382 491 387 Wheels 312 | . 76 236 . Hover . | . . . . Flight . | . . . . Fastest Speed 90 | 120 90 90 210 Average Speed 166 | 120 115 171 210 Slowest Speed 240 | 120 190 240 210 Overloaded Moves . | . . . . Propulsion Burnouts . | . . . . Robots Hopped . | . . . . Potential Cave-ins . | . . . . Cave-ins Triggered 1 | . . . 1 Exploration Rate (%) 56 | 2 69 73 83 Regions Visited 3 Branch Regions 2 Pre-discovered Areas 1 | . . 1 . Known Exits Taken . | . . . . Unknown Exits Taken 3 | 1 1 1 . Scrap Searched 6 | . . 6 . Spaces Dug 8 | . 1 . 7 Terrain Destroyed 32 | . 1 . 31 Melee 7 | . . . 7 Projectile 2 | . 1 . 1 AOE 23 | . . . 23 Terrain Rammed . | . . . . Walls Destroyed . | . . . . Machines Disabled . | . . . . Actions | -11 -10 -10 -9 --------- Run | Yrd Mat Sub Rec Total 2372 | . 551 1396 425 Wait 29 | . 17 11 1 Move 2137 | . 457 1293 387 Hop . | . . . . Pick Up 25 | . 17 8 . Fast Attach 6 | . 1 4 1 Attach 12 | . 4 7 1 Detach 5 | . 2 3 . Swap 20 | . 7 7 6 Drop 23 | . 15 5 3 Fire 99 | . 31 54 14 Melee 16 | . . 4 12 Ram . | . . . . Kick . | . . . . Crush . | . . . . Escape Stasis . | . . . . Rewire . | . . . . Trap . | . . . . Miscellaneous . | . . . . Route ------- -11/Scrapyard -10/Materials (discovered 4 exits: [*Mat x2] / *Min / *Sub) -10/Subcaves (discovered 3 exits: [*Mat x2] / *Rec) -9/Recycling (discovered 1 exit: [*Fac]) History --------- Turn | Location | Event 1 | -11/Scrapyard | Discovered new exit (range 0) 1 | -11/Scrapyard | Entered Materials 6 | -10/Materials | Identified exit to Mines 58 | -10/Materials | Discovered new exit (range 15) 219 | -10/Materials | Botcube activated 231 | -10/Materials | Botcube completed mutation into treaded form, armed with 2 cannons. 314 | -10/Materials | Build established: Mutant 370 | -10/Materials | Discovered new exit (range 15) 632 | -10/Materials | Discovered new exit (range 8) 682 | -10/Materials | Entered Subcaves 682 | -10/Subcaves | Accompanied by 1 ally 688 | -10/Subcaves | Ambushed by Subdwellers from Twisted Machinery 770 | -10/Subcaves | Discovered new exit (range 13) 814 | -10/Subcaves | Discovered new exit (range 9) 827 | -10/Subcaves | Learned Materials terminal intel 836 | -10/Subcaves | Disturbed a concealed Subdweller 851 | -10/Subcaves | Core integrity fell below 50% 883 | -10/Subcaves | Lost 3 parts (1n2w) 1313 | -10/Subcaves | Learned location of Zion (-7) 1315 | -10/Subcaves | Discovered new exit (range 4) 1723 | -10/Subcaves | Ambushed by angry Subdweller bent on revenge 2032 | -10/Subcaves | Shifting Twisted Machinery released Barrage Gun 2074 | -10/Subcaves | Shifting Twisted Machinery released Scrap Shield 2120 | -10/Subcaves | Visited triangular shrine 2132 | -10/Subcaves | Found Prototype Device 2132 | -10/Subcaves | Identified V3-11A's Pendant 2137 | -10/Subcaves | Befriended Subdweller 2317 | -10/Subcaves | Befriended Subdweller 2476 | -10/Subcaves | Visited 4L-MR0's lab 2502 | -10/Subcaves | Found Gun Armor 3117 | -10/Subcaves | Entered Recycling 3117 | -9/Recycling | Accompanied by 3 allies 3809 | -9/Recycling | Discovered new exit (range 15) 4011 | -9/Recycling | Crushed by falling debris 4011 | -9/Recycling | Smashed by cave-in Last Messages --------------- 03996_ Destroyed Lgt. Ion Engine. 03996_ R-06 Scavenger destroyed. 03996_ Compression Vault explodes. 03996_ Lgt. Treads destroyed. 03996_ Destroyed Lgt. Treads. 03998_ Compression Vault explodes. 03999_ The unstable cave ceiling collapses. 04001_ 2U9YP:0 D5P2PX6C SG9EN